bitfinex-derivatives/quotes_BTCF0:USTF0_20250209
["timestamp","ask_amount","ask_price","bid_price","bid_amount"]
[1739144723493,0.2074291,96404.0,96403.0,0.36095562]
[1739144723993,1.7074291,96404.0,96403.0,0.36095562]
[1739144724492,1.7074291,96404.0,96403.0,0.36195562]
[1739144726088,1.7104291,96404.0,96403.0,0.36095562]
[1739144726395,1.7104291,96404.0,96403.0,0.37124022]
[1739144727594,1.7094291,96404.0,96403.0,0.37124022]
[1739144727785,1.7074291,96404.0,96403.0,0.37224022]
[1739144727985,1.7074291,96404.0,96403.0,0.01144022]
[1739144727986,2.0682291,96404.0,96403.0,0.01144022]
[1739144728286,0.2074699,96385.0,96384.0,0.18452003]
[1739144728483,0.5682699,96385.0,96384.0,0.18452003]
[1739144728883,0.2074785,96381.0,96380.0,0.24604536]
[1739144729087,0.2074785,96381.0,96353.0,0.4318525]
[1739144729088,0.21457856,96383.0,96353.0,0.4318525]
[1739144729288,0.5682935,96374.0,96371.0,0.01026285]
[1739144729492,0.3608,96374.0,96368.0,0.00015562]
[1739144729790,0.2075043,96369.0,96368.0,0.00015562]
[1739144730789,1.7075043,96369.0,96368.0,0.00015562]
[1739144731088,0.2075415,96352.0,96350.0,0.4849359]
[1739144731290,0.2075415,96352.0,96350.0,0.3608]
[1739144731600,0.2075415,96352.0,96350.0,0.5683438]
[1739144732393,0.2075308,96357.0,96353.0,0.2075378]
[1739144732587,0.2075308,96357.0,96350.0,0.37932]
[1739144732787,0.2075308,96357.0,96355.0,0.2075341]
[1739144734197,0.2085308,96357.0,96355.0,0.2075341]
[1739144734492,0.001,96357.0,96355.0,0.2075341]
[1739144734695,0.001,96357.0,96355.0,0.2165341]
[1739144735500,0.001,96357.0,96355.0,0.2255341]
[1739144736595,0.2085318,96357.0,96355.0,0.2255341]
[1739144736987,0.2085318,96357.0,96355.0,0.018]
[1739144746296,0.2075322,96356.0,96355.0,0.018]
[1739144747402,0.2075322,96356.0,96355.0,0.009]
[1739144747592,0.2085322,96356.0,96355.0,0.018]
[1739144748001,1.7085322,96356.0,96355.0,0.018]
[1739144763011,2.0693322,96356.0,96355.0,0.018]
[1739144769203,2.0683322,96356.0,96355.0,0.009]
[1739144769405,2.0693322,96356.0,96355.0,0.017]
[1739144772315,2.0693322,96356.0,96355.0,0.016]
[1739144772613,0.207543,96351.0,96350.0,0.01012385]
[1739144772822,1.8618,96356.0,96348.0,0.0347]
[1739144772823,0.2075473,96349.0,96348.0,0.0347]
[1739144773713,0.2075473,96349.0,96348.0,0.08278396]
[1739144774014,0.2085473,96349.0,96348.0,0.10078396]
[1739144808147,0.2085473,96349.0,96348.0,0.09978396]
[1739144808345,0.2085473,96349.0,96348.0,0.09078396]
[1739144808643,0.2085473,96349.0,96348.0,0.09578396]
[1739144808842,0.2075473,96349.0,96348.0,0.08378396]
[1739144809950,0.18619847,96360.0,96348.0,0.21591106]
[1739144810142,0.219,96384.0,96359.0,0.3608]
[1739144810445,0.2075153,96366.0,96365.0,0.2075095]
[1739144811448,0.2075016,96371.0,96370.0,0.2075002]
[1739144811752,1.50056001,96374.0,96373.0,0.2074956]
[1739144812052,1.5,96374.0,96373.0,0.2074956]
[1739144812553,1.7074934,96374.0,96373.0,0.2074956]
[1739144812948,0.00015562,96375.0,96374.0,0.2074934]
[1739144813154,0.2074498,96395.0,96394.0,0.2074447]
[1739144813452,0.21693974,96399.0,96398.0,0.2074418]
[1739144813951,1.71693974,96399.0,96398.0,0.2074418]
[1739144814147,1.71693974,96399.0,96398.0,0.5682418]
[1739144814650,1.72593974,96399.0,96398.0,0.5692418]
[1739144815349,1.72993974,96399.0,96398.0,0.5692418]
[1739144815551,1.72393974,96399.0,96398.0,0.5682418]
[1739144815849,1.72393974,96399.0,96398.0,0.5812137]
[1739144816851,1.507,96399.0,96398.0,0.5812137]
[1739144822649,1.507,96399.0,96398.0,0.6613737]
[1739144830358,1.507,96399.0,96398.0,0.0129719]
[1739144830553,1.507,96399.0,96389.0,0.36159562]
[1739144830554,0.207459,96390.0,96389.0,0.00015562]
[1739144831257,1.707459,96390.0,96389.0,0.00015562]
[1739144831460,0.2075063,96368.0,96367.0,0.00155654]
[1739144833054,0.2085063,96368.0,96367.0,0.01055654]
[1739144833860,0.2095063,96368.0,96367.0,0.01855654]
[1739144834858,1.7095063,96368.0,96367.0,0.01855654]
[1739144836669,1.7085063,96368.0,96367.0,0.01455654]
[1739144836964,1.7075063,96368.0,96367.0,0.00655654]
[1739144837165,1.7085063,96368.0,96367.0,0.00655654]
[1739144837556,1.7075063,96368.0,96367.0,0.00655654]
[1739144837757,0.2105063,96368.0,96367.0,0.00655654]
[1739144838562,0.2125063,96368.0,96367.0,0.00155654]
[1739144839666,0.2105063,96368.0,96367.0,0.00155654]
[1739144839870,0.2135063,96368.0,96367.0,0.00155654]
[1739144840872,0.2145063,96368.0,96367.0,0.00155654]
[1739144847459,0.007,96368.0,96362.0,0.01238166]
[1739144847660,0.3608,96364.0,96358.0,0.00015562]
[1739144847860,0.2075257,96359.0,96358.0,0.00015562]
[1739144848064,0.2075257,96359.0,96358.0,0.01269027]
[1739144848258,0.2075257,96359.0,96358.0,0.00015562]
[1739144848463,0.0518846,96354.0,96334.0,0.3608]
[1739144848665,0.2075623,96342.0,96334.0,0.3608]
[1739144848971,0.2075623,96342.0,96339.0,0.2075677]
[1739144849364,0.2075623,96342.0,96334.0,0.5683791]
[1739144849664,1.5,96350.0,96334.0,0.5690191]
[1739144849665,0.2075731,96337.0,96334.0,0.5690191]
[1739144850167,0.2075731,96337.0,96336.0,0.2413753]
[1739144850970,0.2075731,96337.0,96336.0,0.0338]
[1739144851272,0.2085731,96337.0,96336.0,0.0418]
[1739144851774,0.2085731,96337.0,96336.0,0.26195131]
[1739144851973,0.2095731,96337.0,96336.0,0.27095131]
[1739144853363,0.00015562,96351.0,96336.0,0.06337601]
[1739144853569,0.2075459,96350.0,96349.0,0.2075451]
[1739144853872,0.2075459,96350.0,96349.0,0.5683451]
[1739144854772,0.2075459,96350.0,96349.0,0.5713451]
[1739144855475,0.2085459,96350.0,96349.0,0.5763451]
[1739144857274,1.7085459,96350.0,96349.0,0.5763451]
[1739144858772,0.001,96350.0,96349.0,0.5763451]
[1739144860274,0.001,96350.0,96349.0,0.58896019]
[1739144860579,0.2074942,96375.0,96374.0,0.2074913]
[1739144860775,0.2074988,96372.0,96370.0,0.3608]
[1739144861078,1.5,96371.0,96370.0,0.568302]
[1739144863382,1.504,96371.0,96370.0,0.568302]
[1739144863766,1.509,96371.0,96370.0,0.568302]
[1739144864177,0.009,96371.0,96370.0,0.568302]
[1739144864489,0.0001557,96380.0,96379.0,0.2074827]
[1739144864782,0.0001557,96380.0,96379.0,0.6482827]
[1739144865175,0.18552605,96391.0,96387.0,0.2074654]
[1739144865483,1.68552605,96391.0,96387.0,0.5682654]
[1739144865684,1.68608606,96391.0,96387.0,0.5682654]
[1739144867182,0.0025568,96388.0,96387.0,0.5682654]
[1739144867385,0.0045568,96388.0,96387.0,0.5682654]
[1739144867787,0.0025568,96388.0,96387.0,0.5682654]
[1739144868381,0.0015568,96388.0,96387.0,0.5692654]
[1739144869691,0.0035568,96388.0,96387.0,0.5692654]
[1739144869891,0.0045568,96388.0,96387.0,0.5682654]
[1739144870187,0.0045568,96388.0,96387.0,0.58044977]
[1739144884000,0.0045568,96388.0,96387.0,0.21964977]
[1739144884198,0.0045568,96388.0,96387.0,0.58044977]
[1739144888894,0.003,96388.0,96387.0,0.58044977]
[1739144889092,0.00015564,96397.0,96387.0,0.37298437]
[1739144889397,0.00155633,96412.0,96411.0,0.2074138]
[1739144889604,0.207373,96430.0,96418.0,0.2073987]
[1739144889990,0.207373,96430.0,96418.0,0.5681987]
[1739144890195,0.2073752,96429.0,96418.0,0.5681987]
[1739144890797,0.19452605,96419.0,96418.0,0.5691987]
[1739144891902,0.009,96419.0,96418.0,0.5691987]
[1739144892106,0.018,96419.0,96418.0,0.5701987]
[1739144894606,0.018,96419.0,96418.0,0.58283501]
[1739144896604,0.2516,96439.0,96438.0,0.2073557]
[1739144896806,0.0326,96439.0,96438.0,0.2073557]
[1739144898595,0.2073495,96441.0,96438.0,0.2073557]
[1739144898801,0.2073495,96441.0,96440.0,0.2073514]
[1739144900210,0.2073495,96441.0,96440.0,0.2083514]
[1739144900996,0.0344,96450.0,96440.0,0.3618]
[1739144901203,0.2073406,96446.0,96445.0,0.2073407]
[1739144902207,0.0334,96455.0,96450.0,0.2073299]
[1739144902403,0.0334,96455.0,96454.0,0.2073213]
[1739144902603,0.2407192,96455.0,96454.0,0.2073213]
[1739144903507,0.2073192,96455.0,96454.0,0.2073213]
[1739144903707,0.2073192,96455.0,96454.0,0.2083213]
[1739144905016,0.2073192,96455.0,96454.0,0.2093213]
[1739144906016,0.20886679,96459.0,96458.0,0.2073127]
[1739144906404,0.00155609,96459.0,96458.0,0.2073127]
[1739144907218,0.00755609,96459.0,96458.0,0.2083127]
[1739144908615,0.00755609,96459.0,96458.0,0.2073127]
[1739144908616,0.00155609,96459.0,96458.0,0.2073127]
[1739144908806,0.00755609,96459.0,96458.0,0.2093127]
[1739144910306,0.006,96459.0,96458.0,0.2093127]
[1739144910513,0.006,96459.0,96458.0,0.2890327]
[1739144911014,0.2072962,96466.0,96464.0,0.2072985]
[1739144911716,0.2072977,96465.0,96464.0,0.2072985]
[1739144911920,0.2072873,96470.0,96458.0,0.08172]
[1739144912209,0.2072873,96470.0,96469.0,0.2072891]
[1739144912617,1.7072873,96470.0,96469.0,0.2072891]
[1739144912912,1.5,96470.0,96469.0,0.2072891]
[1739144913112,0.006,96470.0,96469.0,0.2072891]
[1739144913708,0.006,96470.0,96467.0,0.3608]
[1739144913709,0.2072486,96488.0,96484.0,0.2072564]
[1739144913910,0.2072486,96488.0,96487.0,0.3608]
[1739144915315,0.2072486,96488.0,96487.0,0.3618]
[1739144915819,0.2072486,96488.0,96487.0,0.3628]
[1739144917016,1.7072486,96488.0,96487.0,0.3628]
[1739144918409,0.2072486,96488.0,96487.0,0.3628]
[1739144920907,0.01202108,96495.0,96487.0,0.3628]
[1739144921114,0.1,96500.0,96493.0,0.2072375]
[1739144921408,0.31899262,96500.0,96499.0,0.5680247]
[1739144921611,0.00155486,96508.0,96507.0,0.2072075]
[1739144921815,0.2071765,96522.0,96520.0,0.2071781]
[1739144922015,0.2071802,96520.0,96512.0,0.20361965]
[1739144922318,0.2071782,96521.0,96512.0,0.20361965]
[1739144922508,1.50052001,96531.0,96514.0,0.2071911]
[1739144922509,0.2071904,96515.0,96514.0,0.2071911]
[1739144922910,0.2071846,96519.0,96518.0,0.2071831]
[1739144923118,0.2071846,96519.0,96512.0,0.07964]
[1739144923119,0.2071694,96525.0,96523.0,0.2071726]
[1739144923319,0.02442605,96526.0,96515.0,0.48477965]
[1739144923519,0.0347,96579.0,96535.0,0.3608]
[1739144923715,0.2070948,96560.0,96548.0,0.5679195]
[1739144924018,0.15695994,96549.0,96548.0,0.5679195]
[1739144924414,0.15695994,96549.0,96548.0,0.3608]
[1739144924822,0.2071367,96540.0,96539.0,0.00015536]
[1739144931320,0.3608,96540.0,96535.0,0.00096]
[1739144931517,0.3608,96540.0,96528.0,0.3608]
[1739144931518,0.2071603,96529.0,96528.0,0.00096]
[1739144931717,0.2071882,96516.0,96515.0,0.07956]
[1739144932522,0.2071882,96516.0,96512.0,0.3608]
[1739144932523,0.3608,96522.0,96506.0,0.00015536]
[1739144932727,0.2072076,96507.0,96506.0,0.00015536]
[1739144933023,1.7072076,96507.0,96506.0,0.00015536]
[1739144934618,1.7072076,96507.0,96506.0,0.01215536]
[1739144937024,0.2072076,96507.0,96506.0,0.01215536]
[1739144940726,0.2072076,96507.0,96497.0,0.37392465]
[1739144940727,0.2072204,96501.0,96497.0,0.001]
[1739144940925,0.2072505,96487.0,96486.0,7e-08]
[1739144941228,0.5680505,96487.0,96486.0,7e-08]
[1739144942125,0.2072505,96487.0,96486.0,7e-08]
[1739144942325,0.005,96487.0,96486.0,0.56805277]
[1739144942920,0.005,96487.0,96486.0,0.57981693]
[1739144943234,0.00015545,96496.0,96495.0,0.2072333]
[1739144943432,0.00015545,96496.0,96495.0,0.5680333]
[1739144945216,0.00015545,96496.0,96495.0,0.5720333]
[1739144945432,0.00015545,96496.0,96495.0,0.5740333]
[1739144946227,0.12397965,96520.0,96516.0,0.2071877]
[1739144946228,0.2071804,96520.0,96516.0,0.2071877]
[1739144946630,1.5,96519.0,96516.0,0.2071877]
[1739144946827,1.5,96519.0,96513.0,0.3608]
[1739144946828,1.5,96519.0,96518.0,0.2071839]
[1739144947424,0.2071804,96520.0,96518.0,0.2071839]
[1739144947824,1.5,96519.0,96518.0,0.2071839]
[1739144948227,0.005,96519.0,96518.0,0.2071839]
[1739144948932,1.5,96527.0,96526.0,0.2071668]
[1739144949629,0.00015444,96528.0,96526.0,0.2071668]
[1739144949818,0.0669,96549.0,96527.0,0.3608]
[1739144950023,0.0669,96549.0,96541.0,0.3608]
[1739144950024,0.2071346,96542.0,96541.0,0.3608]
[1739144950425,0.0669,96549.0,96541.0,0.3608]
[1739144950624,0.2071294,96544.0,96541.0,0.3608]
[1739144951224,0.2111324,96542.0,96541.0,0.3618]
[1739144951733,0.2111324,96542.0,96533.0,0.00015537]
[1739144951734,0.2071496,96534.0,96533.0,0.00015537]
[1739144952035,0.2071594,96530.0,96527.0,0.3608]
[1739144952225,0.2071695,96525.0,96519.0,0.3608]
[1739144952427,1.5,96522.0,96519.0,0.3608]
[1739144952630,1.5,96522.0,96520.0,0.2071792]
[1739144952833,1.5,96522.0,96521.0,0.36235386]
[1739144953132,0.00015509,96531.0,96521.0,0.36235386]
[1739144953432,0.3608,96557.0,96541.0,0.2071326]
[1739144953624,0.3608,96557.0,96542.0,0.3608]
[1739144954031,0.3608,96568.0,96542.0,0.3608]
[1739144954032,1.5,96556.0,96552.0,0.2071107]
[1739144955236,1.505,96556.0,96552.0,0.2081107]
[1739144956437,1.509,96556.0,96552.0,0.002]
[1739144956824,0.0343,96555.0,96552.0,0.001]
[1739144957028,0.0343,96555.0,96552.0,0.002]
[1739144957431,0.2071068,96554.0,96552.0,0.002]
[1739144957641,0.2763068,96554.0,96544.0,0.00015537]
[1739144957942,0.2763068,96554.0,96552.0,0.001]
[1739144958127,0.2763068,96554.0,96552.0,0.002]
[1739144958635,0.2813068,96554.0,96552.0,0.002]
[1739144959541,1.5,96553.0,96552.0,0.002]
[1739144959833,1.5,96553.0,96552.0,0.001]
[1739144960533,1.5,96553.0,96552.0,0.002]
[1739144960928,1.5,96553.0,96552.0,0.001]
[1739144961126,0.006,96553.0,96552.0,0.001]
[1739144961440,0.006,96553.0,96552.0,0.002]
[1739144961441,0.013,96553.0,96552.0,0.002]
[1739144965642,0.0337,96567.0,96560.0,0.2070926]
[1739144965945,0.0337,96567.0,96566.0,0.3608]
[1739144966331,0.0337,96567.0,96552.0,0.002]
[1739144966538,0.3608,96562.0,96552.0,0.002]
[1739144966836,0.3608,96562.0,96552.0,0.001]
[1739144966837,0.2071085,96554.0,96552.0,0.001]
[1739144967035,0.3608,96562.0,96544.0,0.36095537]
[1739144967343,0.2071022,96557.0,96550.0,0.48477965]
[1739144967539,0.0387,96567.0,96550.0,0.48477965]
[1739144967733,0.207109,96553.0,96550.0,0.3608]
[1739144968731,0.2071125,96552.0,96550.0,0.3608]
[1739144969739,0.0364,96551.0,96544.0,0.00015537]
[1739144969941,0.5679261,96545.0,96544.0,0.00015537]
[1739144970539,2.0679261,96545.0,96544.0,0.00015537]
[1739144971138,2.0679261,96545.0,96531.0,0.24629926]
[1739144971139,0.207154,96532.0,96531.0,0.24629926]
[1739144972439,1.707154,96532.0,96531.0,0.24629926]
[1739144973241,1.5,96532.0,96522.0,0.30813846]
[1739144973441,0.5679733,96523.0,96522.0,0.30813846]
[1739144973752,0.2071733,96523.0,96522.0,0.30813846]
[1739144975039,0.2071733,96523.0,96522.0,0.00015537]
[1739144975647,0.035,96525.0,96501.0,0.30798309]
[1739144975648,0.2072178,96503.0,96501.0,0.30798309]
[1739144976541,1.535,96502.0,96501.0,0.30798309]
[1739144977047,1.535,96502.0,96501.0,0.32398309]
[1739144977543,1.535,96502.0,96501.0,0.30798309]
[1739144977743,1.535,96502.0,96501.0,0.32398309]
[1739144978642,1.535,96502.0,96501.0,0.016]
[1739144978843,0.035,96502.0,96501.0,0.016]
[1739144979044,0.2072178,96503.0,96501.0,0.016]
[1739144979949,0.2072178,96503.0,96501.0,0.007]
[1739144980250,0.01,96582.0,96501.0,0.007]
[1739144980251,0.2072015,96510.0,96502.0,0.2072171]
[1739144980449,0.2072015,96510.0,96501.0,0.016]
[1739144980642,0.2072184,96502.0,96501.0,0.016]
[1739144981545,1.7072184,96502.0,96501.0,0.016]
[1739144982149,1.7072184,96502.0,96501.0,0.007]
[1739144982349,1.7072184,96502.0,96487.0,0.01166559]
[1739144982350,1.7,96502.0,96487.0,0.01166559]
[1739144982647,0.2072613,96482.0,96468.0,0.30798309]
[1739144983445,1.7072613,96482.0,96474.0,0.01147998]
[1739144983849,1.7072613,96482.0,96481.0,0.01055428]
[1739144984249,1.7072613,96482.0,96481.0,0.01955428]
[1739144984845,2.0680613,96482.0,96481.0,0.01955428]
[1739144985249,0.5680613,96482.0,96481.0,0.01955428]
[1739144985653,2.0680613,96482.0,96481.0,0.01955428]
[1739144985954,2.0690613,96482.0,96481.0,0.01955428]
[1739144988451,2.0690613,96482.0,96481.0,0.01555428]
[1739144989046,2.0680613,96482.0,96481.0,0.00955428]
[1739144989255,2.0680613,96482.0,96481.0,0.00455428]
[1739144989645,2.0680613,96482.0,96481.0,0.00155428]
[1739144989844,2.0720613,96482.0,96481.0,0.00155428]
[1739144990749,2.0680613,96482.0,96481.0,0.00155428]
[1739144990953,2.0700613,96482.0,96481.0,0.00155428]
[1739144992458,2.0720613,96482.0,96481.0,0.00155428]
[1739144992750,2.1566153,96482.0,96447.0,0.07948]
[1739144992954,0.2073258,96452.0,96447.0,0.07948]
[1739144993156,0.3608,96460.0,96447.0,0.07948]
[1739144993355,0.2073141,96458.0,96456.0,0.207317]
[1739144995549,0.2073141,96458.0,96456.0,0.006]
[1739144995958,0.2073141,96458.0,96456.0,0.009]
[1739144998351,0.2073141,96458.0,96456.0,0.2163165]
[1739144998849,1.5,96457.0,96456.0,0.2163165]
[1739144999252,0.2073,96465.0,96456.0,0.009]
[1739144999459,0.2073,96465.0,96461.0,0.2073049]
[1739144999658,1.5,96464.0,96461.0,0.2073049]
[1739144999850,0.2073043,96462.0,96461.0,0.2073049]
[1739145000051,0.2073115,96459.0,96456.0,0.009]
[1739145000253,0.2073115,96459.0,96456.0,0.2163163]
[1739145000550,0.207315,96457.0,96456.0,0.2163163]
[1739145001758,0.207315,96457.0,96456.0,0.2133163]
[1739145001962,1.50052001,96464.0,96456.0,0.006]
[1739145002152,1.50052001,96464.0,96462.0,0.2073038]
[1739145002352,1.5,96464.0,96462.0,0.2073038]
[1739145002645,0.2073136,96458.0,96456.0,0.2163168]
[1739145003963,0.2073136,96458.0,96456.0,0.2133168]
[1739145005657,0.2073136,96458.0,96456.0,0.2163168]
[1739145005853,0.00052001,96464.0,96456.0,0.009]
[1739145006058,0.2072959,96466.0,96464.0,0.2072991]
[1739145007059,0.2072959,96466.0,96465.0,0.2072978]
[1739145007658,1.7072959,96466.0,96465.0,0.2072978]
[1739145007860,0.2072959,96466.0,96465.0,0.2072978]
[1739145008162,0.2072959,96466.0,96465.0,0.5680978]
[1739145008655,0.2072959,96466.0,96465.0,0.5720978]
[1739145008855,0.2072959,96466.0,96465.0,0.5730978]
[1739145009265,0.2072959,96466.0,96465.0,0.5720978]
[1739145009456,0.2072959,96466.0,96465.0,0.5740978]
[1739145010059,0.2072959,96466.0,96465.0,0.5730978]
[1739145011062,0.2072959,96466.0,96465.0,0.5720978]
[1739145011265,0.2072959,96466.0,96465.0,0.58373247]
[1739145011761,0.2072959,96466.0,96465.0,0.58073247]
[1739145011952,0.2072959,96466.0,96465.0,0.58473247]
[1739145012969,0.2072959,96466.0,96465.0,0.58573247]
[1739145013270,0.2072959,96466.0,96465.0,0.58373247]
[1739145013567,0.2072959,96466.0,96465.0,0.58573247]
[1739145014065,0.2072959,96466.0,96465.0,0.58473247]
[1739145014266,0.3608,96476.0,96465.0,0.58473247]
[1739145014267,0.0992,96487.0,96465.0,0.37643467]
[1739145014466,0.2072585,96484.0,96483.0,0.2072578]
[1739145014860,1.7072585,96484.0,96483.0,0.2072578]
[1739145015658,1.5,96484.0,96483.0,0.2072578]
[1739145016070,0.00015545,96493.0,96492.0,0.2072398]
[1739145016374,0.00015545,96493.0,96492.0,0.5680398]
[1739145016579,1.50015545,96493.0,96492.0,0.5680398]
[1739145017359,1.50015545,96493.0,96492.0,0.5720398]
[1739145017759,0.00015545,96493.0,96492.0,0.5720398]
[1739145018168,0.00015545,96493.0,96492.0,0.5760398]
[1739145018571,0.00015545,96493.0,96492.0,0.5810398]
[1739145018878,0.00015545,96493.0,96492.0,0.67168326]
[1739145019560,0.00015545,96493.0,96492.0,0.66368326]
[1739145019771,0.00052001,96497.0,96496.0,0.2072313]
[1739145019971,0.2071939,96514.0,96501.0,0.2072205]
[1739145020273,1.50155499,96502.0,96501.0,0.2072205]
[1739145021269,1.5,96502.0,96501.0,0.2122205]
[1739145022267,1.7072184,96502.0,96501.0,0.2122205]
[1739145022875,1.5,96502.0,96501.0,0.2122205]
[1739145023178,1.5,96502.0,96501.0,0.2152205]
[1739145026076,1.5,96502.0,96501.0,0.2102205]
[1739145026280,1.5,96502.0,96501.0,0.2152205]
[1739145026970,1.5,96502.0,96501.0,0.2132205]
[1739145027165,1.5,96502.0,96501.0,0.2162205]
[1739145029570,1.42824,96502.0,96501.0,0.5770205]
[1739145029770,0.0347,96525.0,96521.0,0.2071776]
[1739145029984,0.0347,96525.0,96521.0,0.5679776]
[1739145030781,0.00015545,96531.0,96521.0,0.3608]
[1739145030983,0.00015545,96531.0,96530.0,0.3608]
[1739145032980,0.00615545,96531.0,96530.0,0.3618]
[1739145033585,0.00615545,96531.0,96530.0,0.3628]
[1739145034287,0.033,96545.0,96544.0,0.2071282]
[1739145034478,0.033,96545.0,96544.0,0.5679282]
[1739145034785,0.2070966,96559.0,96553.0,0.207109]
[1739145034987,0.0329,96558.0,96553.0,0.207109]
[1739145036090,0.2071034,96556.0,96553.0,0.207109]
[1739145036285,0.00755424,96554.0,96553.0,0.208109]
[1739145036690,0.00755424,96554.0,96553.0,0.209109]
[1739145037390,0.00755424,96554.0,96553.0,0.22038196]
[1739145043581,0.0674,96565.0,96560.0,0.207092]
[1739145043783,0.2070906,96562.0,96561.0,0.2070918]
[1739145045286,0.0674,96565.0,96560.0,0.002]
[1739145045486,0.0674,96565.0,96564.0,0.2070854]
[1739145046791,0.0674,96565.0,96564.0,0.2090854]
[1739145047779,0.2744832,96565.0,96564.0,0.2090854]
[1739145048288,0.2744832,96565.0,96564.0,0.002]
[1739145048289,1.7744832,96565.0,96564.0,0.002]
[1739145048494,0.2071113,96553.0,96552.0,0.20711]
[1739145048695,0.2071113,96553.0,96552.0,0.21858143]
[1739145049497,0.2071113,96553.0,96552.0,0.01147143]
[1739145049681,0.2071261,96545.0,96544.0,0.00015537]
[1739145050389,1.7071261,96545.0,96544.0,0.00015537]
[1739145051588,1.7081261,96545.0,96544.0,0.00015537]
[1739145053798,0.2081261,96545.0,96544.0,0.00015537]
[1739145054393,1.7081261,96545.0,96544.0,0.00015537]
[1739145063513,0.2081261,96545.0,96544.0,0.20728367]
[1739145065099,0.20816768,96545.0,96544.0,0.20728367]
[1739145069716,0.20816768,96545.0,96544.0,0.00015537]
[1739145070315,1.70816768,96545.0,96544.0,0.00015537]
[1739145073108,0.20816768,96545.0,96544.0,0.00015537]
[1739145074410,0.24306768,96545.0,96544.0,0.00015537]
[1739145077622,0.20816768,96545.0,96544.0,0.00015537]
[1739145078421,0.00104158,96545.0,96544.0,0.20728347]
[1739145080210,1.5,96563.0,96544.0,0.20728347]
[1739145080418,1.7070885,96563.0,96559.0,0.2070956]
[1739145080719,0.18579385,96564.0,96556.0,0.3608]
[1739145080921,0.18579385,96564.0,96553.0,0.3608]
[1739145081119,0.18579385,96564.0,96544.0,0.00015537]
[1739145081120,0.3608,96560.0,96544.0,0.00015537]
[1739145081425,0.207126,96545.0,96544.0,0.36095537]
[1739145081624,0.207126,96545.0,96544.0,0.00015537]
[1739145082316,1.707126,96545.0,96544.0,0.00015537]
[1739145082831,1.707126,96545.0,96544.0,0.01137204]
[1739145084516,1.707126,96545.0,96544.0,0.00015537]
[1739145085225,1.8608,96545.0,96532.0,0.01135559]
[1739145085527,1.8608,96545.0,96529.0,0.24545805]
[1739145085528,0.2071581,96530.0,96529.0,0.24545805]
[1739145086223,1.7071581,96530.0,96529.0,0.24545805]
[1739145087418,1.7071581,96530.0,96529.0,0.24845805]
[1739145088127,1.7071581,96530.0,96529.0,0.24545805]
[1739145089425,0.207173,96523.0,96522.0,0.01137351]
[1739145089727,0.2071773,96521.0,96520.0,0.00015537]
[1739145091026,0.2071773,96521.0,96520.0,0.00215537]
[1739145091212,1.5,96530.0,96520.0,0.00215537]
[1739145091213,0.2071593,96530.0,96523.0,0.2071714]
[1739145091417,0.18579385,96536.0,96526.0,0.2071652]
[1739145091730,0.18579385,96536.0,96530.0,0.207158]
[1739145092623,0.207151,96534.0,96529.0,0.3608]
[1739145093225,1.50052001,96538.0,96531.0,0.2071554]
[1739145093427,1.5,96538.0,96532.0,0.0347]
[1739145094727,1.5,96538.0,96536.0,0.207144]
[1739145095131,1.5,96538.0,96532.0,0.0357]
[1739145095326,1.7071416,96538.0,96532.0,0.0357]
[1739145096033,1.7071416,96538.0,96532.0,0.0347]
[1739145097030,1.7071416,96538.0,96535.0,0.207147]
[1739145097624,0.00015513,96539.0,96538.0,0.2071408]
[1739145098227,0.00015513,96539.0,96537.0,0.3608]
[1739145098432,0.2071408,96538.0,96537.0,0.3608]
[1739145099138,1.7071408,96538.0,96537.0,0.3608]
[1739145099324,1.5,96538.0,96537.0,0.3608]
[1739145099524,1.7071408,96538.0,96537.0,0.3608]
[1739145100331,1.5,96538.0,96537.0,0.3608]
[1739145102734,1.5,96538.0,96537.0,0.5679429]
[1739145102942,1.5,96538.0,96537.0,0.3608]
[1739145104136,1.5729,96538.0,96537.0,0.3608]
[1739145104737,1.5,96538.0,96537.0,0.5679429]
[1739145105733,1.7071407,96538.0,96537.0,0.5679429]
[1739145108545,1.7071407,96538.0,96537.0,0.3608]
[1739145108842,1.7431407,96538.0,96537.0,0.3608]
[1739145120249,1.7431407,96538.0,96520.0,0.25524962]
[1739145120250,0.0517907,96528.0,96521.0,0.01146862]
[1739145120447,0.2071774,96521.0,96520.0,0.00015537]
[1739145120848,1.7071774,96521.0,96520.0,0.00015537]
[1739145121149,2.0679774,96521.0,96520.0,0.00015537]
[1739145121954,2.0679774,96521.0,96520.0,0.00515537]
[1739145122145,2.0679774,96521.0,96520.0,0.01215537]
[1739145122451,0.01141373,96538.0,96521.0,0.0517939]
[1739145122645,0.219,96579.0,96537.0,0.7216]
[1739145122839,0.0357,96576.0,96555.0,0.7216]
[1739145123043,0.0357,96576.0,96575.0,0.3608]
[1739145123246,0.0376,96582.0,96575.0,0.5678615]
[1739145123654,0.2070576,96577.0,96575.0,0.3608]
[1739145124053,0.2070658,96573.0,96572.0,0.0008]
[1739145124248,0.2070723,96570.0,96569.0,0.00015537]
[1739145124859,0.2071115,96552.0,96551.0,0.3608]
[1739145127854,0.2071115,96552.0,96543.0,0.3608]
[1739145128352,0.2071115,96552.0,96551.0,0.3608]
[1739145131253,0.2071115,96552.0,96543.0,0.3608]
[1739145138161,0.2071115,96552.0,96551.0,0.3608]
[1739145138353,0.207106,96555.0,96551.0,0.3608]
[1739145138558,0.00015537,96561.0,96551.0,0.3608]
[1739145138559,0.2071081,96554.0,96552.0,0.0366]
[1739145138759,0.2071081,96554.0,96553.0,0.0357]
[1739145141259,0.2070951,96560.0,96553.0,0.0357]
[1739145141456,0.2070951,96560.0,96559.0,0.3608]
[1739145143453,0.00015537,96561.0,96559.0,0.3608]
[1739145143657,0.12984966,97168.0,96559.0,0.3608]
[1739145143658,0.0714,96584.0,96559.0,0.3608]
[1739145143860,0.2070486,96581.0,96580.0,0.3608]
[1739145145067,0.2070486,96581.0,96580.0,0.3618]
[1739145145566,0.2070486,96581.0,96580.0,0.3628]
[1739145156988,0.2070486,96581.0,96572.0,0.3608]
[1739145156989,0.2070658,96573.0,96572.0,0.3608]
[1739145158289,0.2070658,96573.0,96572.0,0.3628]
[1739145168084,0.185849,96588.0,96572.0,0.3628]
[1739145168290,0.2070358,96587.0,96582.0,0.3608]
[1739145168594,0.2070399,96586.0,96585.0,0.2070395]
[1739145170199,0.2070399,96586.0,96585.0,0.2080395]
[1739145170587,0.186849,96588.0,96587.0,0.2070358]